[Event "European Online Club-ch-I 2021"]
[Site "Online"]
[Date "2021.03.27"]
[Round "1.18"]
[White "Godart, Francois"]
[Black "Javakhishvili, Lela"]
[Result "1/2-1/2"]
[ECO "B22"]
[WhiteElo "2422"]
[BlackElo "2473"]
[Annotator "ChessBase"]
[PlyCount "219"]
[EventDate "2021.03.27"]
[EventType "team-tourn"]
[EventCountry "NET"]
[SourceTitle "playchess.com"]
[Source "ChessBase"]
[SourceQuality "1"]
[TimeControl "900+5"]

1. e4 {[%emt 0:00:00]} c5 {[%emt 0:00:04]} 2. Nf3 {[%emt 0:00:03]} e6 {[%emt 0:00:03]} 3. c3 {[%emt 0:00:02]} Nf6 {[%emt 0:00:04]} 4. e5 {[%emt 0:00:02]} Nd5 {[%emt 0:00:02]} 5. Bc4 {[%emt 0:00:01]} Nb6 {[%emt 0:00:35]} 6. Bb3 {[%emt 0:00:24]} c4 {[%emt 0:00:02]} 7. Bc2 {[%emt 0:00:02]} Nc6 {[%emt 0:00:18]} 8. b3 {[%emt 0:00:07]} d5 {[%emt 0:00:27]} 9. exd6 {[%emt 0:00:25]} Bxd6 {[%emt 0:00:06]} 10. bxc4 {[%emt 0:00:34]} Nxc4 {[%emt 0:00:05]} 11. d4 {[%emt 0:00:14]} Qc7 {[%emt 0:00:32]} 12. O-O {[%emt 0:00:13]} Ne7 {[%emt 0:00:11]} 13. Nbd2 {[%emt 0:00:49]} Nxd2 {[%emt 0:00:50]} 14. Bxd2 {[%emt 0:00:03]} b6 {[%emt 0:01:08]} 15. Re1 {[%emt 0:01:02]} Bb7 {[%emt 0:00:09]} 16. Ne5 {[%emt 0:00:15]} Bxe5 {[%emt 0:01:14]} 17. Rxe5 {[%emt 0:00:11]} Ng6 {[%emt 0:00:19]} 18. Re1 {[%emt 0:01:10]} O-O {[%emt 0:00:21]} 19. Qh5 {[%emt 0:00:19]} Rfd8 {[%emt 0:00:14]} 20. Re3 {[%emt 0:01:34]} Bxg2 {[%emt 0:02:15]} 21. Rg3 {[%emt 0:00:56]} Bb7 {[%emt 0:00:25]} 22. Rh3 {[%emt 0:00:04]} h6 {[%emt 0:03:50]} 23. Bxg6 {[%emt 0:02:16]} fxg6 {[%emt 0:00:02]} 24. Qxg6 {[%emt 0:00:03]} Qf7 {[%emt 0:00:12]} 25. Rxh6 {[%emt 0:00:14]} Qxg6+ {[%emt 0:01:13]} 26. Rxg6 {[%emt 0:00:03]} Kf7 {[%emt 0:00:01]} 27. Rg3 {[%emt 0:00:07]} e5 {[%emt 0:00:17]} 28. Be3 {[%emt 0:00:26]} Rac8 {[%emt 0:00:47]} 29. dxe5 {[%emt 0:01:06]} Rxc3 {[%emt 0:00:03]} 30. a4 {[%emt 0:00:45]} Rcd3 {[%emt 0:00:47]} 31. Kf1 {[%emt 0:00:03]} Rd1+ {[%emt 0:00:16]} 32. Rxd1 {[%emt 0:00:02]} Rxd1+ {[%emt 0:00:01]} 33. Ke2 {[%emt 0:00:00]} Ra1 {[%emt 0:00:06]} 34. e6+ {[%emt 0:00:12]} Kxe6 {[%emt 0:00:03]} 35. Rxg7 {[%emt 0:00:01]} Bc6 {[%emt 0:00:27]} 36. Rxa7 {[%emt 0:00:17]} Bxa4 {[%emt 0:00:03]} 37. Rb7 {[%emt 0:00:23]} b5 {[%emt 0:00:13]} 38. h4 {[%emt 0:00:09]} Rh1 {[%emt 0:00:03]} 39. Bg5 {[%emt 0:00:04]} Kd5 {[%emt 0:00:04]} 40. f4 {[%emt 0:00:05]} Kc4 {[%emt 0:00:10]} 41. f5 {[%emt 0:00:05]} b4 {[%emt 0:00:10]} 42. f6 {[%emt 0:00:11]} Bd1+ {[%emt 0:00:01]} 43. Kd2 {[%emt 0:00:11]} Bh5 {[%emt 0:00:02]} 44. Rc7+ {[%emt 0:00:20]} Kd5 {[%emt 0:00:03]} 45. Rh7 {[%emt 0:00:15]} Bg6 {[%emt 0:00:01]} 46. Rg7 {[%emt 0:00:05]} Bh5 {[%emt 0:00:07]} 47. Kc2 {[%emt 0:00:19]} Rh3 {[%emt 0:00:06]} 48. Kb2 {[%emt 0:00:06]} Kc4 {[%emt 0:00:04]} 49. Rc7+ {[%emt 0:00:03]} Kd5 {[%emt 0:00:03]} 50. Rc2 {[%emt 0:01:09]} Bg6 {[%emt 0:00:06]} 51. Rf2 {[%emt 0:00:02]} Bf7 {[%emt 0:00:01]} 52. Re2 {[%emt 0:00:23]} b3 {[%emt 0:00:07]} 53. Re7 {[%emt 0:00:08]} Bh5 {[%emt 0:00:01]} 54. Bd2 {[%emt 0:00:14]} Rf3 {[%emt 0:00:06]} 55. Bc3 {[%emt 0:00:04]} Rh3 {[%emt 0:00:18]} 56. Rh7 {[%emt 0:00:10]} Bg6 {[%emt 0:00:03]} 57. Rg7 {[%emt 0:00:06]} Be8 {[%emt 0:00:09]} 58. f7 {[%emt 0:00:15]} Bxf7 {[%emt 0:00:02]} 59. Rxf7 {[%emt 0:00:01]} Rxh4 {[%emt 0:00:02]} 60. Kxb3 {[%emt 0:00:02]} Rh3 {[%emt 0:00:02]} 61. Rf5+ {[%emt 0:00:03]} Ke4 {[%emt 0:00:03]} 62. Rf1 {[%emt 0:00:05]} Rf3 {[%emt 0:00:02]} 63. Re1+ {[%emt 0:00:03]} Re3 {[%emt 0:00:02]} 64. Rd1 {[%emt 0:00:01]} Rd3 {[%emt 0:00:01]} 65. Rh1 {[%emt 0:00:01]} Rf3 {[%emt 0:00:03]} 66. Kc4 {[%emt 0:00:02]} Rf5 {[%emt 0:00:08]} 67. Re1+ {[%emt 0:00:03]} Kf3 {[%emt 0:00:01]} 68. Kd3 {[%emt 0:00:03]} Kf2 {[%emt 0:00:04]} 69. Re8 {[%emt 0:00:03]} Kf3 {[%emt 0:00:03]} 70. Bd4 {[%emt 0:00:02]} Kf4 {[%emt 0:00:06]} 71. Re1 {[%emt 0:00:02]} Kf3 {[%emt 0:00:04]} 72. Rf1+ {[%emt 0:00:07]} Kg4 {[%emt 0:00:02]} 73. Re1 {[%emt 0:00:07]} Kf3 {[%emt 0:00:02]} 74. Re2 {[%emt 0:00:10]} Rf4 {[%emt 0:00:10]} 75. Be3 {[%emt 0:00:03]} Rf5 {[%emt 0:00:06]} 76. Ra2 {[%emt 0:00:11]} Rd5+ {[%emt 0:00:03]} 77. Bd4 {[%emt 0:00:01]} Rf5 {[%emt 0:00:04]} 78. Ra1 {[%emt 0:00:03]} Kf4 {[%emt 0:00:07]} 79. Ke2 {[%emt 0:00:24]} Ke4 {[%emt 0:00:05]} 80. Be3 {[%emt 0:00:02]} Rd5 {[%emt 0:00:08]} 81. Ra4+ {[%emt 0:00:01]} Ke5 {[%emt 0:00:02]} 82. Kf3 {[%emt 0:00:02]} Kf5 {[%emt 0:00:02]} 83. Rf4+ {[%emt 0:00:05]} Ke5 {[%emt 0:00:03]} 84. Rh4 {[%emt 0:00:11]} Kf5 {[%emt 0:00:04]} 85. Rh8 {[%emt 0:00:03]} Ke5 {[%emt 0:00:07]} 86. Re8+ {[%emt 0:00:03]} Kf5 {[%emt 0:00:04]} 87. Re7 {[%emt 0:00:05]} Kf6 {[%emt 0:00:15]} 88. Rh7 {[%emt 0:00:04]} Kf5 {[%emt 0:00:02]} 89. Rh4 {[%emt 0:00:11]} Ke5 {[%emt 0:00:10]} 90. Bf4+ {[%emt 0:00:07]} Kf5 {[%emt 0:00:03]} 91. Ke3 {[%emt 0:00:04]} Rd7 {[%emt 0:00:13]} 92. Rh5+ {[%emt 0:00:02]} Kg6 {[%emt 0:00:01]} 93. Rg5+ {[%emt 0:00:03]} Kf6 {[%emt 0:00:02]} 94. Ra5 {[%emt 0:00:03]} Re7+ {[%emt 0:00:08]} 95. Kf3 {[%emt 0:00:02]} Rd7 {[%emt 0:00:06]} 96. Ke4 {[%emt 0:00:02]} Kf7 {[%emt 0:00:14]} 97. Kf5 {[%emt 0:00:04]} Re7 {[%emt 0:00:05]} 98. Be5 {[%emt 0:00:04]} Rd7 {[%emt 0:00:05]} 99. Ra6 {[%emt 0:00:02]} Ke7 {[%emt 0:00:08]} 100. Rh6 {[%emt 0:00:02]} Kf7 {[%emt 0:00:09]} 101. Bd6 {[%emt 0:00:07]} Kg7 {[%emt 0:00:07]} 102. Kg5 {[%emt 0:00:02]} Kf7 {[%emt 0:00:06]} 103. Rg6 {[%emt 0:00:19]} Rd8 {[%emt 0:00:02]} 104. Kf5 {[%emt 0:00:11]} Rd7 {[%emt 0:00:08]} 105. Be5 {[%emt 0:00:08]} Rd8 {[%emt 0:00:05]} 106. Rf6+ {[%emt 0:00:06]} Ke7 {[%emt 0:00:02]} 107. Rh6 {[%emt 0:00:12]} Rf8+ {[%emt 0:00:06]} 108. Ke4 {[%emt 0:00:08]} Kd7 {[%emt 0:00:05]} 109. Kd5 {[%emt 0:00:03]} Rf7 {[%emt 0:00:03]} 110. Ra6 {[%emt 0:00:04]} 1/2-1/2

[Event "European Online Club-ch-I 2021"]
[Site "Online"]
[Date "2021.03.27"]
[Round "1.19"]
[White "Bulmaga, Irina"]
[Black "Marechal, Andy"]
[Result "1/2-1/2"]
[ECO "C11"]
[WhiteElo "2440"]
[BlackElo "2332"]
[Annotator "NA"]
[PlyCount "116"]
[EventDate "2021.03.27"]
[EventType "team-tourn"]
[EventCountry "NET"]
[SourceTitle "playchess.com"]
[Source "ChessBase"]
[SourceQuality "1"]
[TimeControl "900+5"]

1. e4 {[%emt 0:00:00]} e6 {[%emt 0:00:08]} 2. d4 {[%emt 0:00:03]} d5 {[%emt 0:00:03]} 3. Nc3 {[%emt 0:00:02]} Nf6 {[%emt 0:00:01]} 4. e5 {[%emt 0:00:02]} Nfd7 {[%emt 0:00:02]} 5. f4 {[%emt 0:00:01]} c5 {[%emt 0:00:01]} 6. Nf3 {[%emt 0:00:02]} Nc6 {[%emt 0:00:01]} 7. Be3 {[%emt 0:00:01]} cxd4 {[%emt 0:00:01]} 8. Nxd4 {[%emt 0:00:02]} Bc5 {[%emt 0:00:01]} 9. Qd2 {[%emt 0:00:02]} O-O {[%emt 0:00:06]} 10. O-O-O {[%emt 0:00:06]} a6 {[%emt 0:00:16]} 11. Nb3 {[%emt 0:00:03]} Bb4 {[%emt 0:00:07]} 12. Bd3 {[%emt 0:00:06]} b5 {[%emt 0:00:24]} 13. Rhf1 {[%emt 0:00:47]} Bb7 {[%emt 0:00:14]} 14. a3 {[%emt 0:00:13]} Be7 {[%emt 0:00:29]} 15. Ne2 {[%emt 0:00:52]} Rc8 {[%emt 0:01:20]} 16. Ned4 {[%emt 0:01:19]} Nxd4 {[%emt 0:02:25]} 17. Bxd4 {[%emt 0:00:16]} Nc5 {[%emt 0:00:19]} 18. Nxc5 {[%emt 0:00:47]} Bxc5 {[%emt 0:00:03]} 19. Bxc5 {[%emt 0:00:43]} Rxc5 {[%emt 0:00:03]} 20. f5 {[%emt 0:00:58]} exf5 {[%emt 0:01:14]} 21. Rxf5 {[%emt 0:00:55]} Qh4 {[%emt 0:02:47]} 22. g3 {[%emt 0:01:36]} Qh3 {[%emt 0:00:23]} 23. Rdf1 {[%emt 0:01:29]} Bc8 {[%emt 0:00:23]} 24. Qf2 {[%emt 0:02:05]} Bxf5 {[%emt 0:02:02]} 25. Bxf5 {[%emt 0:00:45]} Qh6+ {[%emt 0:00:02]} 26. Kb1 {[%emt 0:00:02]} Rc6 {[%emt 0:00:15]} 27. Bd7 {[%emt 0:01:32]} Re6 {[%emt 0:00:51]} 28. Bxe6 {[%emt 0:00:20]} Qxe6 {[%emt 0:00:04]} 29. Qd4 {[%emt 0:00:10]} Re8 {[%emt 0:00:14]} 30. Rd1 {[%emt 0:00:01]} Qxe5 {[%emt 0:00:21]} 31. Qxd5 {[%emt 0:00:07]} g6 {[%emt 0:00:35]} 32. Qxe5 {[%emt 0:00:42]} Rxe5 {[%emt 0:00:04]} 33. Rd2 {[%emt 0:00:10]} Kg7 {[%emt 0:00:15]} 34. b4 {[%emt 0:00:02]} h5 {[%emt 0:00:09]} 35. Kb2 {[%emt 0:00:07]} Re6 {[%emt 0:00:28]} 36. Kb3 {[%emt 0:00:03]} Rc6 {[%emt 0:00:13]} 37. a4 {[%emt 0:00:06]} Kf6 {[%emt 0:00:30]} 38. axb5 {[%emt 0:00:04]} axb5 {[%emt 0:00:00]} 39. Rd5 {[%emt 0:00:01]} Rb6 {[%emt 0:00:05]} 40. c4 {[%emt 0:00:06]} bxc4+ {[%emt 0:00:03]} 41. Kxc4 {[%emt 0:00:00]} Ke6 {[%emt 0:00:03]} 42. b5 {[%emt 0:00:07]} Rb8 {[%emt 0:00:07]} 43. Rd2 {[%emt 0:00:21]} g5 {[%emt 0:00:14]} 44. Kc5 {[%emt 0:00:05]} f5 {[%emt 0:00:09]} 45. b6 {[%emt 0:00:39]} f4 {[%emt 0:00:10]} 46. gxf4 {[%emt 0:00:04]} gxf4 {[%emt 0:00:01]} 47. Kc6 {[%emt 0:00:07]} Rc8+ {[%emt 0:00:12]} 48. Kb5 {[%emt 0:00:12]} Ke5 {[%emt 0:00:08]} 49. b7 {[%emt 0:00:07]} Rb8 {[%emt 0:00:11]} 50. Kc6 {[%emt 0:00:02]} Ke4 {[%emt 0:00:01]} 51. Kc7 {[%emt 0:00:34]} Rxb7+ {[%emt 0:00:24]} 52. Kxb7 {[%emt 0:00:00]} f3 {[%emt 0:00:01]} 53. Rb2 {[%emt 0:00:07]} Ke3 {[%emt 0:00:12]} 54. Kc6 {[%emt 0:00:04]} f2 {[%emt 0:00:03]} 55. Rb1 {[%emt 0:00:04]} Ke2 {[%emt 0:00:24]} 56. Rb2+ {[%emt 0:00:08]} Ke3 {[%emt 0:00:11]} 57. Rb3+ {[%emt 0:00:05]} Ke2 {[%emt 0:00:03]} 58. Rb2+ {[%emt 0:00:03]} Ke3 {[%emt 0:00:01]} 1/2-1/2

[Event "European Online Club-ch-I 2021"]
[Site "Online"]
[Date "2021.03.27"]
[Round "1.20"]
[White "Dishman, Stephen"]
[Black "Daulyte-Cornette, Deimante"]
[Result "1-0"]
[ECO "E11"]
[WhiteElo "2316"]
[BlackElo "2387"]
[Annotator "NA"]
[PlyCount "97"]
[EventDate "2021.03.27"]
[EventType "team-tourn"]
[EventCountry "NET"]
[SourceTitle "playchess.com"]
[Source "ChessBase"]
[SourceQuality "1"]
[TimeControl "900+5"]

1. Nf3 {[%emt 0:00:00]} d5 {[%emt 0:00:07]} 2. c4 {[%emt 0:00:03]} e6 {[%emt 0:00:06]} 3. d4 {[%emt 0:00:03]} Nf6 {[%emt 0:00:03]} 4. g3 {[%emt 0:00:02]} Bb4+ {[%emt 0:00:32]} 5. Bd2 {[%emt 0:00:02]} Be7 {[%emt 0:00:05]} 6. Bg2 {[%emt 0:00:02]} O-O {[%emt 0:00:06]} 7. O-O {[%emt 0:00:02]} Ne4 {[%emt 0:00:12]} 8. Qc2 {[%emt 0:00:07]} f5 {[%emt 0:00:20]} 9. Nc3 {[%emt 0:00:28]} c6 {[%emt 0:00:04]} 10. Bf4 {[%emt 0:00:13]} Nd7 {[%emt 0:00:30]} 11. Rfd1 {[%emt 0:00:33]} g5 {[%emt 0:00:11]} 12. Bc1 {[%emt 0:00:02]} Nd6 {[%emt 0:00:38]} 13. cxd5 {[%emt 0:02:28]} cxd5 {[%emt 0:00:26]} 14. b3 {[%emt 0:00:18]} Ne4 {[%emt 0:00:19]} 15. Bb2 {[%emt 0:00:18]} g4 {[%emt 0:00:20]} 16. Ne1 {[%emt 0:00:35]} Bf6 {[%emt 0:00:56]} 17. Nxe4 {[%emt 0:00:38]} fxe4 {[%emt 0:00:29]} 18. f3 {[%emt 0:00:03]} Bg5 {[%emt 0:01:42]} 19. Bc1 {[%emt 0:00:42]} Bxc1 {[%emt 0:00:43]} 20. Qxc1 {[%emt 0:01:32]} exf3 {[%emt 0:00:30]} 21. exf3 {[%emt 0:00:00]} Qf6 {[%emt 0:00:04]} 22. f4 {[%emt 0:00:58]} Qg7 {[%emt 0:01:05]} 23. Qe3 {[%emt 0:00:08]} Nf6 {[%emt 0:00:13]} 24. Nd3 {[%emt 0:00:03]} b6 {[%emt 0:02:06]} 25. Rac1 {[%emt 0:00:03]} Kh8 {[%emt 0:00:12]} 26. Rc2 {[%emt 0:00:29]} Ba6 {[%emt 0:00:48]} 27. Ne5 {[%emt 0:01:06]} Rac8 {[%emt 0:00:12]} 28. Rdc1 {[%emt 0:00:02]} Rxc2 {[%emt 0:00:11]} 29. Rxc2 {[%emt 0:00:00]} Rc8 {[%emt 0:00:02]} 30. Rxc8+ {[%emt 0:00:50]} Bxc8 {[%emt 0:00:00]} 31. Qc3 {[%emt 0:00:02]} Bb7 {[%emt 0:00:10]} 32. Qb4 {[%emt 0:00:45]} Ne8 {[%emt 0:01:52]} 33. Bf1 {[%emt 0:01:10]} Kg8 {[%emt 0:00:48]} 34. Bb5 {[%emt 0:00:20]} Qc7 {[%emt 0:00:42]} 35. Bxe8 {[%emt 0:00:59]} Qc1+ {[%emt 0:00:02]} 36. Kf2 {[%emt 0:00:07]} Qc2+ {[%emt 0:00:26]} 37. Ke3 {[%emt 0:00:46]} Qe4+ {[%emt 0:00:29]} 38. Kd2 {[%emt 0:00:12]} Ba6 {[%emt 0:00:06]} 39. Bb5 {[%emt 0:00:21]} Bxb5 {[%emt 0:00:13]} 40. Qxb5 {[%emt 0:00:00]} Qxd4+ {[%emt 0:00:02]} 41. Kc2 {[%emt 0:00:06]} Qf2+ {[%emt 0:00:04]} 42. Kb1 {[%emt 0:00:02]} Qg1+ {[%emt 0:00:04]} 43. Kb2 {[%emt 0:00:03]} Qxh2+ {[%emt 0:00:19]} 44. Ka3 {[%emt 0:00:02]} Kf8 {[%emt 0:00:02]} 45. Qd7 {[%emt 0:00:06]} Qh5 {[%emt 0:00:02]} 46. Qxe6 {[%emt 0:00:05]} d4 {[%emt 0:00:04]} 47. Nd7+ {[%emt 0:00:10]} Kg7 {[%emt 0:00:03]} 48. Qf6+ {[%emt 0:00:02]} Kg8 {[%emt 0:00:04]} 49. Qf8# {[%emt 0:00:01]} 1-0

[Event "European Online Club-ch-I 2021"]
[Site "Online"]
[Date "2021.03.27"]
[Round "2.1"]
[White "Verdier, Patrice"]
[Black "Godart, Francois"]
[Result "0-1"]
[ECO "D31"]
[WhiteElo "2109"]
[BlackElo "2422"]
[Annotator "NA"]
[PlyCount "78"]
[EventDate "2021.03.27"]
[EventType "team-tourn"]
[EventCountry "NET"]
[SourceTitle "playchess.com"]
[Source "ChessBase"]
[SourceQuality "1"]
[TimeControl "900+5"]

1. d4 {[%emt 0:00:00]} d5 {[%emt 0:00:11]} 2. c4 {[%emt 0:00:03]} e6 {[%emt 0:00:02]} 3. Nc3 {[%emt 0:00:02]} c6 {[%emt 0:00:02]} 4. e4 {[%emt 0:00:06]} dxe4 {[%emt 0:00:00]} 5. Nxe4 {[%emt 0:00:02]} Bb4+ {[%emt 0:00:01]} 6. Bd2 {[%emt 0:00:02]} Qxd4 {[%emt 0:00:01]} 7. Bxb4 {[%emt 0:00:02]} Qxe4+ {[%emt 0:00:01]} 8. Be2 {[%emt 0:00:02]} Na6 {[%emt 0:00:03]} 9. Bc3 {[%emt 0:00:25]} f6 {[%emt 0:00:14]} 10. Qd2 {[%emt 0:00:29]} e5 {[%emt 0:00:32]} 11. Rd1 {[%emt 0:01:18]} Be6 {[%emt 0:00:30]} 12. b3 {[%emt 0:01:13]} Qxg2 {[%emt 0:02:31]} 13. Bf3 {[%emt 0:00:09]} Qg6 {[%emt 0:00:02]} 14. Qd6 {[%emt 0:00:15]} Kf7 {[%emt 0:00:03]} 15. Ne2 {[%emt 0:01:29]} Ne7 {[%emt 0:01:07]} 16. Rg1 {[%emt 0:00:12]} Nf5 {[%emt 0:00:19]} 17. Qa3 {[%emt 0:00:35]} Qh6 {[%emt 0:01:09]} 18. Bd2 {[%emt 0:00:09]} Qh3 {[%emt 0:01:51]} 19. Be4 {[%emt 0:03:21]} Rhd8 {[%emt 0:00:47]} 20. Ng3 {[%emt 0:01:45]} Nd4 {[%emt 0:01:00]} 21. Be3 {[%emt 0:00:55]} f5 {[%emt 0:01:41]} 22. Bxd4 {[%emt 0:00:23]} Rxd4 {[%emt 0:00:42]} 23. Rxd4 {[%emt 0:00:06]} exd4 {[%emt 0:00:01]} 24. Bd3 {[%emt 0:00:24]} Re8 {[%emt 0:00:03]} 25. Kd1 {[%emt 0:00:32]} Qxh2 {[%emt 0:00:13]} 26. Rf1 {[%emt 0:00:20]} c5 {[%emt 0:00:19]} 27. Qc1 {[%emt 0:00:15]} Nb4 {[%emt 0:00:14]} 28. Bb1 {[%emt 0:00:11]} Qh4 {[%emt 0:00:35]} 29. Qd2 {[%emt 0:00:47]} Qh6 {[%emt 0:01:23]} 30. f4 {[%emt 0:00:32]} Qh3 {[%emt 0:00:16]} 31. Qf2 {[%emt 0:00:10]} Bd7 {[%emt 0:00:31]} 32. a3 {[%emt 0:00:12]} Nc6 {[%emt 0:00:03]} 33. Rh1 {[%emt 0:00:05]} Qg4+ {[%emt 0:00:02]} 34. Kc1 {[%emt 0:00:03]} h6 {[%emt 0:00:12]} 35. Bc2 {[%emt 0:00:08]} Re3 {[%emt 0:00:11]} 36. Rg1 {[%emt 0:00:18]} Rf3 {[%emt 0:00:06]} 37. Qh2 {[%emt 0:00:21]} Qxf4+ {[%emt 0:00:05]} 38. Kb2 {[%emt 0:00:02]} d3 {[%emt 0:00:10]} 39. Bd1 {[%emt 0:00:40]} Rf2+ {[%emt 0:00:02]} 0-1

[Event "European Online Club-ch-I 2021"]
[Site "Online"]
[Date "2021.03.27"]
[Round "2.2"]
[White "Marechal, Andy"]
[Black "Van Hoolandt, Patrick"]
[Result "1-0"]
[ECO "C54"]
[WhiteElo "2332"]
[BlackElo "2017"]
[Annotator "NA"]
[PlyCount "97"]
[EventDate "2021.03.27"]
[EventType "team-tourn"]
[EventCountry "NET"]
[SourceTitle "playchess.com"]
[Source "ChessBase"]
[SourceQuality "1"]
[TimeControl "900+5"]

1. e4 {[%emt 0:00:00]} e5 {[%emt 0:00:03]} 2. Nf3 {[%emt 0:00:02]} Nc6 {[%emt 0:00:02]} 3. Bc4 {[%emt 0:00:02]} Bc5 {[%emt 0:00:03]} 4. c3 {[%emt 0:00:02]} Nf6 {[%emt 0:00:02]} 5. d3 {[%emt 0:00:01]} a6 {[%emt 0:00:03]} 6. Bb3 {[%emt 0:00:01]} Ba7 {[%emt 0:00:03]} 7. h3 {[%emt 0:00:02]} h6 {[%emt 0:00:08]} 8. Nbd2 {[%emt 0:00:02]} d6 {[%emt 0:00:10]} 9. Nf1 {[%emt 0:00:03]} d5 {[%emt 0:00:01]} 10. Qe2 {[%emt 0:00:14]} dxe4 {[%emt 0:01:14]} 11. dxe4 {[%emt 0:00:04]} Qe7 {[%emt 0:00:02]} 12. Ng3 {[%emt 0:00:31]} O-O {[%emt 0:00:18]} 13. Nh4 {[%emt 0:00:25]} Be6 {[%emt 0:01:27]} 14. Nhf5 {[%emt 0:00:05]} Qe8 {[%emt 0:00:26]} 15. Qf3 {[%emt 0:00:35]} Nh7 {[%emt 0:01:37]} 16. Bxh6 {[%emt 0:01:05]} g6 {[%emt 0:00:36]} 17. Ne3 {[%emt 0:01:26]} Bxb3 {[%emt 0:00:30]} 18. axb3 {[%emt 0:00:04]} Qe6 {[%emt 0:00:03]} 19. Bxf8 {[%emt 0:00:06]} Rxf8 {[%emt 0:00:12]} 20. Nd5 {[%emt 0:00:51]} Nd8 {[%emt 0:00:19]} 21. Qg4 {[%emt 0:01:14]} Qd6 {[%emt 0:01:06]} 22. Nf5 {[%emt 0:00:27]} Qc5 {[%emt 0:00:02]} 23. O-O {[%emt 0:00:31]} Kh8 {[%emt 0:00:07]} 24. Qh4 {[%emt 0:00:36]} Qc6 {[%emt 0:00:43]} 25. Nfe3 {[%emt 0:00:25]} f5 {[%emt 0:00:28]} 26. Rad1 {[%emt 0:00:44]} g5 {[%emt 0:01:59]} 27. Qh5 {[%emt 0:00:15]} fxe4 {[%emt 0:00:02]} 28. Ne7 {[%emt 0:00:20]} Qf6 {[%emt 0:00:24]} 29. Ng6+ {[%emt 0:00:08]} Kg7 {[%emt 0:00:02]} 30. Nxf8 {[%emt 0:00:05]} Nxf8 {[%emt 0:00:08]} 31. Ng4 {[%emt 0:00:36]} Qe7 {[%emt 0:00:16]} 32. Qh6+ {[%emt 0:00:11]} Kf7 {[%emt 0:00:22]} 33. Qf6+ {[%emt 0:02:03]} Qxf6 {[%emt 0:00:04]} 34. Nxf6 {[%emt 0:00:02]} Nde6 {[%emt 0:00:24]} 35. Nxe4 {[%emt 0:00:06]} Ke7 {[%emt 0:00:12]} 36. Rfe1 {[%emt 0:00:13]} Ng6 {[%emt 0:00:03]} 37. g3 {[%emt 0:00:07]} Ngf8 {[%emt 0:00:19]} 38. Kg2 {[%emt 0:00:03]} Nd7 {[%emt 0:00:02]} 39. Kf3 {[%emt 0:00:14]} a5 {[%emt 0:00:11]} 40. Ra1 {[%emt 0:00:37]} Bb6 {[%emt 0:00:07]} 41. Rad1 {[%emt 0:00:12]} Nb8 {[%emt 0:00:12]} 42. h4 {[%emt 0:00:03]} gxh4 {[%emt 0:00:04]} 43. gxh4 {[%emt 0:00:00]} Kf7 {[%emt 0:00:02]} 44. Rg1 {[%emt 0:00:03]} Nf4 {[%emt 0:00:06]} 45. Rg5 {[%emt 0:00:16]} Nc6 {[%emt 0:00:04]} 46. Rd7+ {[%emt 0:00:08]} Ke6 {[%emt 0:00:05]} 47. Rh7 {[%emt 0:00:06]} Nh3 {[%emt 0:00:14]} 48. Rg6+ {[%emt 0:00:11]} Kd5 {[%emt 0:00:06]} 49. Rd7# {[%emt 0:00:06]} 1-0

[Event "European Online Club-ch-I 2021"]
[Site "Online"]
[Date "2021.03.27"]
[Round "2.3"]
[White "Meylan, Pierre"]
[Black "Dishman, Stephen"]
[Result "1/2-1/2"]
[ECO "B18"]
[WhiteElo "2053"]
[BlackElo "2316"]
[Annotator "NA"]
[PlyCount "114"]
[EventDate "2021.03.27"]
[EventType "team-tourn"]
[EventCountry "NET"]
[SourceTitle "playchess.com"]
[Source "ChessBase"]
[SourceQuality "1"]
[TimeControl "900+5"]

1. e4 {[%emt 0:00:00]} c6 {[%emt 0:00:04]} 2. d4 {[%emt 0:00:04]} d5 {[%emt 0:00:02]} 3. Nd2 {[%emt 0:00:04]} dxe4 {[%emt 0:00:01]} 4. Nxe4 {[%emt 0:00:03]} Bf5 {[%emt 0:00:01]} 5. Ng3 {[%emt 0:00:04]} Bg6 {[%emt 0:00:02]} 6. Nf3 {[%emt 0:00:03]} Nd7 {[%emt 0:00:03]} 7. Bd3 {[%emt 0:00:34]} e6 {[%emt 0:00:08]} 8. O-O {[%emt 0:00:11]} Ngf6 {[%emt 0:00:02]} 9. Re1 {[%emt 0:00:17]} Be7 {[%emt 0:00:34]} 10. Bf4 {[%emt 0:00:18]} Qb6 {[%emt 0:00:30]} 11. b3 {[%emt 0:00:54]} c5 {[%emt 0:01:15]} 12. c4 {[%emt 0:00:45]} cxd4 {[%emt 0:00:23]} 13. Bxg6 {[%emt 0:00:13]} hxg6 {[%emt 0:00:00]} 14. Qxd4 {[%emt 0:00:31]} Bc5 {[%emt 0:00:07]} 15. Qd2 {[%emt 0:00:12]} Bb4 {[%emt 0:00:33]} 16. Qd3 {[%emt 0:00:39]} Nc5 {[%emt 0:01:07]} 17. Qc2 {[%emt 0:00:37]} Bxe1 {[%emt 0:00:05]} 18. Rxe1 {[%emt 0:00:04]} O-O {[%emt 0:00:22]} 19. Ne5 {[%emt 0:01:24]} Rad8 {[%emt 0:00:12]} 20. Bg5 {[%emt 0:00:47]} Rd6 {[%emt 0:01:59]} 21. Bxf6 {[%emt 0:00:36]} gxf6 {[%emt 0:00:02]} 22. Nxg6 {[%emt 0:00:07]} Rfd8 {[%emt 0:02:13]} 23. Nh5 {[%emt 0:01:12]} Rd2 {[%emt 0:01:42]} 24. Nxf6+ {[%emt 0:01:07]} Kg7 {[%emt 0:00:03]} 25. Nh5+ {[%emt 0:00:37]} Kh6 {[%emt 0:00:37]} 26. Qc3 {[%emt 0:00:24]} R8d4 {[%emt 0:02:37]} 27. Ngf4 {[%emt 0:01:21]} Rd1 {[%emt 0:00:44]} 28. Kf1 {[%emt 0:01:06]} Qd6 {[%emt 0:00:11]} 29. Rxd1 {[%emt 0:00:41]} Rxd1+ {[%emt 0:00:00]} 30. Ke2 {[%emt 0:00:02]} Qd4 {[%emt 0:00:47]} 31. Qxd4 {[%emt 0:01:12]} Rxd4 {[%emt 0:00:00]} 32. Ke3 {[%emt 0:00:03]} Re4+ {[%emt 0:00:28]} 33. Kf3 {[%emt 0:00:08]} e5 {[%emt 0:00:03]} 34. Ne2 {[%emt 0:00:14]} Rxe2 {[%emt 0:00:13]} 35. Kxe2 {[%emt 0:00:05]} Kxh5 {[%emt 0:00:01]} 36. Ke3 {[%emt 0:00:03]} f5 {[%emt 0:00:02]} 37. g3 {[%emt 0:00:10]} Kg4 {[%emt 0:00:04]} 38. h4 {[%emt 0:00:10]} f4+ {[%emt 0:00:17]} 39. Ke2 {[%emt 0:00:41]} fxg3 {[%emt 0:00:06]} 40. fxg3 {[%emt 0:00:05]} Ne4 {[%emt 0:00:01]} 41. h5 {[%emt 0:00:06]} Nxg3+ {[%emt 0:00:02]} 42. Ke3 {[%emt 0:00:03]} Kf5 {[%emt 0:00:20]} 43. h6 {[%emt 0:00:10]} Kg6 {[%emt 0:00:06]} 44. Kf3 {[%emt 0:00:11]} Nf5 {[%emt 0:00:20]} 45. h7 {[%emt 0:00:08]} Kxh7 {[%emt 0:00:02]} 46. Ke4 {[%emt 0:00:02]} Kg6 {[%emt 0:00:02]} 47. Kxe5 {[%emt 0:00:02]} Ne3 {[%emt 0:00:09]} 48. c5 {[%emt 0:00:11]} Kf7 {[%emt 0:00:07]} 49. Kd6 {[%emt 0:00:03]} Ke8 {[%emt 0:00:03]} 50. Kc7 {[%emt 0:00:02]} b6 {[%emt 0:00:04]} 51. cxb6 {[%emt 0:00:03]} Nd5+ {[%emt 0:00:04]} 52. Kb7 {[%emt 0:00:06]} axb6 {[%emt 0:00:02]} 53. Kc6 {[%emt 0:00:02]} Nb4+ {[%emt 0:00:03]} 54. Kxb6 {[%emt 0:00:03]} Nxa2 {[%emt 0:00:01]} 55. b4 {[%emt 0:00:04]} Kd7 {[%emt 0:00:02]} 56. b5 {[%emt 0:00:03]} Nc3 {[%emt 0:00:01]} 57. Kc5 {[%emt 0:00:03]} Nxb5 {[%emt 0:00:02]} 1/2-1/2